bitfinex/quotes_BTCUSD_20210101
["timestamp","ask_amount","ask_price","bid_price","bid_amount"]
[1609525411757,0.27148684,29163.0,29149.0,0.005]
[1609525411954,0.29995496,29163.0,29149.0,0.0052]
[1609525412264,0.27148684,29163.0,29152.0,0.5138]
[1609525412559,0.68078,29164.0,29152.0,0.5138]
[1609525412957,0.68078,29164.0,29148.0,0.404]
[1609525412958,3.95,29162.0,29148.0,0.404]
[1609525413157,3.95,29162.0,29146.0,0.19034077]
[1609525413158,0.42973538,29161.0,29146.0,0.19034077]
[1609525413866,0.71196581,29160.0,29151.0,0.685]
[1609525414062,0.03346812,29159.0,29146.0,0.19034077]
[1609525414359,0.75945167,29152.0,29146.0,0.19034077]
[1609525415355,0.75945167,29152.0,29149.0,0.5138]
[1609525416754,0.75334076,29152.0,29149.0,0.333052]
[1609525418588,0.14302955,29150.0,29149.0,0.0002]
[1609525418887,0.145,29150.0,29147.0,0.0002]
[1609525419285,0.145,29150.0,29148.0,0.33261104]
[1609525419681,0.145,29150.0,29147.0,0.33281976]
[1609525420277,0.75334076,29152.0,29147.0,0.33281976]
[1609525420477,0.89637031,29152.0,29147.0,0.33281976]
[1609525420684,1.08618896,29151.0,29147.0,0.33281976]
[1609525420995,1.01965708,29150.0,29147.0,0.33261976]
[1609525421284,4.75,29148.0,29147.0,0.33261976]
[1609525421580,5.63618896,29148.0,29147.0,0.33261976]
[1609525421778,5.63618896,29148.0,29146.0,0.33266111]
[1609525422084,4.67483257,29147.0,29142.0,0.33262055]
[1609525422283,0.33180302,29146.0,29141.0,0.33260541]
[1609525422482,1.65362516,29146.0,29141.0,0.33280541]
[1609525422678,0.33180302,29145.0,29141.0,0.33280541]
[1609525422881,0.245,29144.0,29141.0,0.33280541]
[1609525423321,0.21087882,29144.0,29142.0,0.33258896]
[1609525423624,0.19797195,29144.0,29142.0,0.0002]
[1609525424321,0.19797195,29144.0,29141.0,0.0002]
[1609525425823,0.19797195,29144.0,29140.0,0.6855]
[1609525426125,0.33180302,29148.0,29140.0,0.6855]
[1609525426527,0.3,29149.0,29140.0,0.6855]
[1609525426802,6.25,29148.0,29140.0,0.6853]
[1609525426998,0.33180302,29147.0,29140.0,0.6853]
[1609525427789,0.31779182,29147.0,29140.0,0.6853]
[1609525428097,0.28,29146.0,29140.0,0.6853]
[1609525428394,0.6835678,29149.0,29140.0,0.6853]
[1609525428592,0.714,29150.0,29140.0,0.6853]
[1609525428998,0.514,29150.0,29140.0,0.78670664]
[1609525429198,0.75334076,29152.0,29140.0,0.78670664]
[1609525429698,0.75334076,29152.0,29140.0,0.78690664]
[1609525431506,0.75334076,29152.0,29141.0,0.4835678]
[1609525431707,0.75334076,29152.0,29141.0,0.0002]
[1609525431912,0.75334076,29152.0,29146.0,0.5138]
[1609525432205,0.75334076,29152.0,29146.0,0.70041]
[1609525432409,0.75334076,29152.0,29146.0,0.70061]
[1609525433213,0.75334076,29152.0,29146.0,0.80237661]
[1609525436721,0.75334076,29152.0,29146.0,0.72776]
[1609525437130,1.87755927,29152.0,29146.0,0.21396]
[1609525437437,0.1783,29149.0,29146.0,0.21396]
[1609525437630,1.30751851,29149.0,29146.0,0.21396]
[1609525437833,0.98618896,29148.0,29144.0,0.10242315]
[1609525438062,0.195,29147.0,29144.0,0.10242315]
[1609525438272,0.514,29144.0,29140.0,0.10140664]
[1609525439766,0.5505,29144.0,29140.0,0.10140664]
[1609525440371,0.0365,29144.0,29140.0,0.10140664]
[1609525441166,0.0405,29144.0,29140.0,0.10140664]
[1609525441365,0.0355,29144.0,29140.0,0.10140664]
[1609525442326,0.0305,29144.0,29140.0,0.10140664]
[1609525445030,0.39221955,29144.0,29140.0,0.10140664]
[1609525445230,0.135,29143.0,29140.0,0.10140664]
[1609525445637,0.335,29143.0,29140.0,0.10140664]
[1609525446930,0.27034414,29143.0,29132.0,0.5141]
[1609525447135,0.6857589,29143.0,29133.0,1.49910495]
[1609525447463,0.6857589,29143.0,29133.0,0.49910495]
[1609525447464,0.1,29141.0,29133.0,0.49910495]
[1609525447668,0.6856,29138.0,29131.0,0.2193]
[1609525447863,0.1,29136.0,29130.0,0.4992429]
[1609525448061,1.16118896,29135.0,29129.0,0.03]
[1609525448263,0.98618896,29134.0,29129.0,0.03]
[1609525448456,0.24611,29134.0,29129.0,0.03]
[1609525448755,0.215,29133.0,29129.0,0.03]
[1609525448956,0.19,29133.0,29129.0,0.03]
[1609525449155,0.7043,29133.0,29129.0,0.03]
[1609525449953,0.6943,29133.0,29129.0,0.03]
[1609525450155,0.68048896,29133.0,29129.0,0.03]
[1609525451457,0.68048896,29133.0,29129.0,0.0302]
[1609525451965,0.16618896,29133.0,29129.0,0.0302]
[1609525452163,0.6856,29138.0,29130.0,0.0002001]
[1609525452372,0.0907585,29141.0,29133.0,0.0002001]
[1609525452561,0.03346812,29143.0,29133.0,0.0002001]
[1609525452761,0.80906096,29145.0,29133.0,0.0002001]
[1609525452762,0.06396812,29144.0,29133.0,0.0002001]
[1609525452956,0.38175994,29144.0,29133.0,0.0002001]
[1609525453404,0.03346812,29143.0,29133.0,0.0002001]
[1609525453800,0.06396812,29144.0,29133.0,0.0002001]
[1609525454007,0.5446,29144.0,29133.0,0.5143001]
[1609525454208,0.0305,29144.0,29133.0,0.5143001]
[1609525454706,0.0305,29144.0,29133.0,0.10232105]
[1609525455098,0.0255,29144.0,29133.0,0.10232105]
[1609525456005,0.0255,29144.0,29138.0,0.514]
[1609525458294,1.08618896,29143.0,29137.0,0.0002]
[1609525458500,1.15118896,29142.0,29137.0,0.0002]
[1609525458693,1.01965708,29141.0,29137.0,0.0002]
[1609525458895,1.08618896,29140.0,29137.0,0.0002]
[1609525459205,1.01965708,29139.0,29135.0,0.0002]
[1609525459499,0.5142,29137.0,29135.0,0.0002]
[1609525459696,0.5142,29137.0,29134.0,0.0402]
[1609525460192,0.54766812,29137.0,29134.0,0.0402]
[1609525460392,0.5142,29137.0,29134.0,0.0402]
[1609525460792,0.5142,29137.0,29134.0,0.0302]
[1609525460994,0.165,29136.0,29134.0,0.0302]
[1609525461493,0.165,29136.0,29134.0,0.0002]
[1609525461695,0.165,29136.0,29133.0,0.0002001]
[1609525461893,0.30802955,29136.0,29133.0,0.0002001]
[1609525462095,0.36666955,29136.0,29133.0,0.0002001]
[1609525462611,0.98618896,29135.0,29133.0,0.0002001]
[1609525462918,0.98618896,29135.0,29130.0,0.0002]
[1609525462919,0.33346812,29134.0,29130.0,0.0002]
[1609525463115,0.31779182,29132.0,29122.0,0.0006]
[1609525463317,0.31779182,29130.0,29123.0,0.001]
[1609525463517,0.98618896,29129.0,29123.0,0.001]
[1609525463716,0.1,29128.0,29123.0,0.001]
[1609525463916,1.08618896,29128.0,29123.0,0.001]
[1609525464222,1.68047845,29127.0,29123.0,0.001]
[1609525464417,1.30398078,29126.0,29123.0,0.001]
[1609525464619,1.22921851,29125.0,29123.0,0.001]
[1609525464818,7.45398078,29124.0,29123.0,0.001]
[1609525465032,7.45398078,29124.0,29120.0,2.2008]
[1609525465033,7.64275078,29123.0,29120.0,2.153]
[1609525465224,6.56779182,29121.0,29120.0,2.15]
[1609525465422,6.46779182,29121.0,29120.0,2.1]
[1609525465613,7.46779182,29121.0,29120.0,2.1]
[1609525465814,7.43453752,29121.0,29120.0,2.075]
[1609525466016,8.1337249,29121.0,29120.0,2.075]
[1609525466216,7.14753594,29121.0,29120.0,2.075]
[1609525466412,8.1337249,29121.0,29120.0,2.075]
[1609525466614,7.14753594,29121.0,29120.0,2.075]
[1609525466818,7.24753594,29121.0,29120.0,2.075]
[1609525468018,7.14408094,29121.0,29120.0,2.075]
[1609525468437,2.06779182,29121.0,29120.0,2.075]
[1609525468632,1.06279182,29121.0,29120.0,2.075]
[1609525468836,1.18,29121.0,29120.0,2.075]
[1609525469035,4.03,29121.0,29120.0,2.075]
[1609525469234,4.02976011,29121.0,29120.0,2.075]
[1609525469436,0.435,29121.0,29120.0,2.075]
[1609525469838,0.51450001,29122.0,29121.0,0.0002]
[1609525470042,5.10068897,29122.0,29121.0,0.0002]
[1609525470440,4.11450001,29122.0,29121.0,0.0002]
[1609525470642,5.24371852,29122.0,29121.0,0.0002]
[1609525470840,5.59568897,29122.0,29121.0,0.0002]
[1609525471041,5.73871852,29122.0,29121.0,0.0002]
[1609525471448,7.55398078,29121.0,29120.0,2.0652]
[1609525471643,7.45398078,29121.0,29120.0,2.0652]
[1609525471919,8.45398078,29121.0,29120.0,2.0652]
[1609525472681,2.30398078,29121.0,29120.0,2.0652]
[1609525472982,3.14701033,29121.0,29120.0,2.0652]
[1609525473917,3.82779033,29121.0,29120.0,2.0652]
[1609525474417,4.55279033,29121.0,29120.0,2.0652]
[1609525475019,4.80279033,29121.0,29120.0,2.0652]
[1609525475219,4.55279033,29121.0,29120.0,2.0652]
[1609525475420,1.96660137,29121.0,29120.0,2.0652]
[1609525475623,2.80976078,29121.0,29120.0,2.0652]
[1609525475828,10.00279033,29121.0,29120.0,2.0628]
[1609525476025,10.89053845,29121.0,29120.0,2.0596]
[1609525476220,10.89053845,29121.0,29120.0,2.0592]
[1609525476422,10.89053845,29121.0,29120.0,2.0584]
[1609525476622,10.89053845,29121.0,29120.0,2.0562]
[1609525476822,10.85707033,29121.0,29120.0,2.0562]
[1609525477320,4.70707033,29121.0,29120.0,2.0562]
[1609525477947,10.55707033,29121.0,29120.0,2.0512]
[1609525478150,4.57440033,29121.0,29120.0,2.0512]
[1609525478349,4.43137078,29121.0,29120.0,2.0512]
[1609525478651,4.50434429,29121.0,29120.0,2.0512]
[1609525478948,6.60430426,29121.0,29120.0,2.0512]
[1609525480249,4.45430426,29121.0,29120.0,2.0512]
[1609525480651,4.48777238,29121.0,29120.0,2.0512]
[1609525481048,6.93777238,29121.0,29120.0,2.0512]
[1609525481250,6.93777238,29121.0,29119.0,0.0008]
[1609525481251,10.96104118,29121.0,29119.0,0.0002]
[1609525481464,6.15,29119.0,29116.0,0.0004]
[1609525481767,7.03440182,29116.0,29115.0,0.0004]
[1609525481956,8.90059078,29116.0,29115.0,0.0004]
[1609525482157,8.90059078,29116.0,29112.0,0.0002]
[1609525482158,6.15,29115.0,29112.0,0.0002]
[1609525482368,6.15,29115.0,29105.0,0.0008]
[1609525482369,6.15,29111.0,29105.0,0.0008]
[1609525482559,0.40007812,29109.0,29105.0,0.0004]
[1609525482775,7.93104914,29108.0,29089.0,0.8011]
[1609525482964,6.34976152,29106.0,29078.0,0.0018]
[1609525483182,2.10527576,29105.0,29088.0,0.0008]
[1609525483379,3.16930764,29104.0,29088.0,0.0008]
[1609525483579,2.18277576,29103.0,29088.0,0.0008]
[1609525483775,1.50148078,29102.0,29088.0,0.0008]
[1609525483983,6.46529182,29100.0,29083.0,0.2949]
[1609525484287,6.46529182,29100.0,29083.0,0.0014]
[1609525484288,0.64875994,29098.0,29083.0,0.0014]
[1609525484576,0.51529182,29096.0,29083.0,0.0014]
[1609525484778,0.1,29098.0,29085.0,4.75]
[1609525485081,0.10167,29099.0,29085.0,4.740425]
[1609525485575,0.10167,29099.0,29085.0,4.725425]
[1609525485777,6.15,29100.0,29085.0,4.725425]
[1609525485979,1.45354998,29099.0,29085.0,4.725425]
[1609525486180,0.9859888,29098.0,29085.0,4.725425]
[1609525486481,6.15,29100.0,29085.0,4.725425]
[1609525486987,6.15,29100.0,29085.0,0.0002125]
[1609525487632,0.98618896,29099.0,29085.0,0.0002125]
[1609525487830,1.60271896,29099.0,29085.0,0.0002125]
[1609525488135,0.98618896,29098.0,29085.0,0.0002125]
[1609525488531,0.8146,29099.0,29082.0,0.78824541]
[1609525488891,0.08,29102.0,29083.0,0.395]
[1609525489084,0.46736102,29101.0,29083.0,0.395]
[1609525489285,0.8772585,29104.0,29083.0,0.57810957]
[1609525489286,0.0907585,29102.0,29083.0,0.57810957]
[1609525489483,1.45354998,29101.0,29083.0,0.195]
[1609525489676,0.46736102,29101.0,29082.0,0.78251762]
[1609525489883,0.98618896,29101.0,29083.0,0.38327601]
[1609525490182,0.46736102,29100.0,29084.0,7.15]
[1609525490386,0.05032,29101.0,29086.0,0.33180302]
[1609525490583,0.05032,29101.0,29087.0,1.0]
[1609525490784,0.69575321,29098.0,29087.0,1.345]
[1609525490988,0.69575321,29098.0,29088.0,1.2]
[1609525491188,0.69575321,29098.0,29090.0,0.7149]
[1609525491384,0.69575321,29098.0,29091.0,1.2]
[1609525491687,0.69575321,29098.0,29092.0,1.455]
[1609525491881,0.59880669,29098.0,29093.0,1.2002]
[1609525492085,0.59880669,29098.0,29093.0,0.2002]
[1609525492481,0.59880669,29098.0,29094.0,0.2002]
[1609525492707,0.58479549,29098.0,29094.0,0.2002]
[1609525492904,0.58479549,29098.0,29095.0,1.0]
[1609525493118,5.49e-06,29098.0,29095.0,1.43225]
[1609525493313,5.49e-06,29098.0,29096.0,1.3502]
[1609525493513,0.6556,29114.0,29098.0,0.20019451]
[1609525493825,0.6556,29114.0,29103.0,0.94481]
[1609525494121,2.45,29115.0,29104.0,1.2]
[1609525494314,2.45,29115.0,29105.0,1.2002]
[1609525494508,2.45,29115.0,29106.0,1.2]
[1609525494712,2.45,29115.0,29106.0,0.2]
[1609525494906,2.45,29115.0,29105.0,0.1952]
[1609525495110,2.45,29115.0,29103.0,0.94001]
[1609525495310,2.45,29115.0,29104.0,0.1952]
[1609525495506,2.45,29115.0,29104.0,1.0]
[1609525495706,2.45,29115.0,29104.0,1.1952]
[1609525496005,2.45,29115.0,29105.0,1.1952]
[1609525496202,2.45,29115.0,29106.0,1.1952]
[1609525496705,2.45,29115.0,29107.0,1.1952]
[1609525496906,2.45,29115.0,29108.0,1.35]
[1609525497108,2.45,29115.0,29108.0,1.98257457]
[1609525497408,2.45,29115.0,29108.0,1.78737457]
[1609525497604,2.45,29115.0,29108.0,1.98257457]
[1609525497803,2.45,29115.0,29108.0,3.93737457]
[1609525498004,2.45,29115.0,29108.0,4.13257457]
[1609525498248,0.99198629,29109.0,29108.0,3.93737457]
[1609525498639,0.99198629,29109.0,29108.0,2.15757457]
[1609525498836,0.99198629,29109.0,29108.0,2.66237457]
[1609525499038,0.99198629,29109.0,29108.0,2.15757457]
[1609525499235,0.99198629,29109.0,29108.0,1.78737457]
[1609525499438,0.98698629,29109.0,29108.0,1.98257457]
[1609525499647,0.98198629,29109.0,29108.0,5.78737457]
[1609525499946,0.89753356,29109.0,29108.0,6.25737457]
[1609525500348,2.45,29115.0,29109.0,0.63777457]
[1609525500553,2.45380635,29115.0,29110.0,0.63757457]
[1609525500750,2.42029709,29115.0,29112.0,0.44237457]
[1609525500953,2.42029709,29115.0,29113.0,0.33180302]
[1609525500954,2.32797337,29115.0,29113.0,0.33180302]
[1609525501151,0.32797337,29115.0,29114.0,6.73737457]
[1609525501348,0.30097047,29115.0,29114.0,6.93737457]
[1609525501553,0.30097047,29115.0,29114.0,6.73737457]
[1609525501747,0.30097047,29115.0,29114.0,6.295]
[1609525502007,0.30097047,29115.0,29114.0,6.475]
[1609525502402,0.30097047,29115.0,29114.0,0.325]
[1609525502607,0.30097047,29115.0,29114.0,0.0002]
[1609525503214,0.30097047,29115.0,29112.0,0.1954]
[1609525503710,0.30097047,29115.0,29111.0,0.0002]
[1609525504311,0.30097047,29115.0,29110.0,0.5147]
[1609525504915,0.47927047,29115.0,29110.0,0.5147]
[1609525505318,0.47927047,29115.0,29110.0,0.0002]
[1609525505515,0.18210635,29115.0,29109.0,0.6859]
[1609525507563,0.18210635,29115.0,29109.0,1.12827457]
[1609525507766,0.18210635,29115.0,29109.0,0.6859]
[1609525508376,0.55762543,29114.0,29105.0,0.0002]
[1609525508578,0.0038,29112.0,29104.0,0.0002]
[1609525508776,0.65762543,29111.0,29104.0,0.0002]
[1609525508963,0.1,29110.0,29104.0,0.0002]
[1609525509271,0.55762543,29109.0,29101.0,0.0002]
[1609525509520,0.80189178,29109.0,29101.0,0.0002]
[1609525509816,0.80189178,29109.0,29100.0,0.001]
[1609525509817,0.70742543,29108.0,29100.0,0.001]
[1609525510018,1.17732543,29107.0,29100.0,0.001]
[1609525510216,0.82742543,29106.0,29100.0,0.001]
[1609525510510,0.56242543,29105.0,29100.0,0.001]
[1609525510908,0.56242543,29104.0,29100.0,0.001]
[1609525511115,0.66242543,29103.0,29100.0,0.001]
[1609525511414,0.0048,29102.0,29100.0,0.001]
[1609525512707,3.0048,29101.0,29100.0,0.001]
[1609525512909,4.13719115,29101.0,29100.0,0.001]
[1609525513245,3.5798,29101.0,29100.0,0.001]
[1609525514407,0.5798,29101.0,29100.0,0.001]
[1609525514609,0.0048,29102.0,29100.0,0.001]
[1609525514815,0.0048,29103.0,29100.0,0.10311304]
[1609525515020,2.10068269,29101.0,29100.0,0.10311304]
[1609525515234,2.10548269,29101.0,29100.0,0.001]
[1609525515434,0.20548269,29101.0,29100.0,0.001]
[1609525516040,0.20548269,29101.0,29100.0,0.10282438]
[1609525516041,0.01572269,29101.0,29100.0,0.10282438]
[1609525516239,0.16,29105.0,29100.0,0.10282438]
[1609525516541,0.16,29105.0,29100.0,0.001]
[1609525517029,0.16,29105.0,29100.0,0.29015311]
[1609525517188,0.55739115,29104.0,29100.0,0.29015311]
[1609525517493,0.1,29103.0,29100.0,0.29015311]
[1609525517687,0.70739115,29102.0,29100.0,0.29015311]
[1609525517888,1.39460115,29102.0,29100.0,0.29015311]
[1609525518089,4.80739115,29101.0,29100.0,0.29015311]
[1609525518289,5.49460115,29101.0,29100.0,0.29015311]
[1609525518489,6.35460115,29101.0,29100.0,0.29015311]
[1609525518788,1.54721,29101.0,29100.0,0.29015311]
[1609525519028,1.24460115,29101.0,29100.0,0.29015311]
[1609525519227,0.68721,29101.0,29100.0,0.29015311]
[1609525519427,3.33721,29101.0,29100.0,0.29015311]
[1609525519630,3.95221,29101.0,29100.0,0.29015311]
[1609525519827,1.30221,29101.0,29100.0,0.29015311]
[1609525520029,0.68721,29101.0,29100.0,0.29015311]
[1609525524966,0.68721,29101.0,29100.0,0.39423521]
[1609525526064,0.68721,29101.0,29100.0,0.29015311]
[1609525526575,0.68721,29101.0,29100.0,0.73276196]
[1609525526779,0.604593,29101.0,29100.0,6.88276196]
[1609525526975,0.604593,29101.0,29100.0,7.08105047]
[1609525527174,0.604593,29101.0,29100.0,7.65385423]
[1609525527668,0.57843937,29101.0,29100.0,7.65385423]
[1609525528072,0.57843937,29101.0,29100.0,7.55105047]
[1609525528684,9.37e-06,29101.0,29100.0,7.55105047]
[1609525528891,0.66998731,29114.0,29103.0,6.92441187]
[1609525529095,0.66998731,29114.0,29105.0,0.33180302]
[1609525529286,0.66998731,29114.0,29107.0,0.33180302]
[1609525529488,0.66998731,29114.0,29108.0,1.09788766]
[1609525529684,0.66998731,29114.0,29110.0,0.33180302]
[1609525529885,0.66998731,29114.0,29110.0,0.53009153]
[1609525530093,0.51450001,29126.0,29111.0,5.79828851]
[1609525530293,0.55739115,29125.0,29112.0,0.53354767]
[1609525530486,0.55739115,29125.0,29112.0,0.53009153]
[1609525530686,0.16,29124.0,29112.0,0.53009153]
[1609525530885,0.55739115,29123.0,29112.0,0.53029153]
[1609525531087,0.16,29124.0,29112.0,0.97290038]
[1609525531292,1.04062239,29125.0,29113.0,0.53009153]
[1609525531485,0.55739115,29125.0,29113.0,0.53009153]
[1609525532095,0.55739115,29125.0,29114.0,1.04459153]
[1609525532237,0.55239115,29124.0,29115.0,0.53009153]
[1609525532431,0.55239115,29125.0,29116.0,0.33180302]
[1609525532737,0.16,29124.0,29114.0,0.71278851]
[1609525532930,0.16,29124.0,29115.0,0.53009153]
[1609525533128,0.16,29124.0,29115.0,0.33180302]
[1609525533334,0.51450001,29126.0,29115.0,0.53009153]
[1609525533629,1.06689116,29126.0,29115.0,0.53009153]
[1609525533965,0.51450001,29126.0,29115.0,0.53009153]
[1609525534165,0.51450001,29126.0,29115.0,0.97770038]
[1609525534366,0.51450001,29126.0,29115.0,1.08180099]
[1609525534572,0.51450001,29126.0,29116.0,0.53009153]
[1609525534873,0.51450001,29126.0,29117.0,0.88739736]
[1609525535070,0.47892048,29130.0,29117.0,0.43978851]
[1609525535266,1.06689116,29129.0,29117.0,0.43978851]
[1609525535473,0.71239115,29128.0,29117.0,0.2415]
[1609525535667,0.55239115,29127.0,29117.0,0.1415]
[1609525535868,0.55239115,29127.0,29117.0,0.10348557]
[1609525536471,0.175,29126.0,29117.0,0.10348557]
[1609525536672,0.72239115,29126.0,29117.0,0.30177408]
[1609525536870,0.72239115,29126.0,29115.0,0.53009153]
[1609525537076,0.51450001,29129.0,29117.0,0.33180302]
[1609525537278,0.51450001,29129.0,29118.0,0.44760885]
[1609525537479,0.0002,29131.0,29119.0,1.55388083]
[1609525537703,0.55239115,29130.0,29120.0,0.33525916]
[1609525537914,1.55533394,29140.0,29121.0,6.42828851]
[1609525538103,1.0,29139.0,29122.0,1.36877555]
[1609525538398,1.0,29139.0,29124.0,0.53009153]
[1609525538399,0.23,29139.0,29124.0,0.53009153]
[1609525538595,0.23,29139.0,29124.0,0.53354767]
[1609525538998,0.51440001,29135.0,29126.0,0.20174465]
[1609525539198,0.51440001,29135.0,29125.0,0.27828851]
[1609525539996,0.51440001,29135.0,29125.0,0.075]
[1609525540297,0.51440001,29135.0,29125.0,0.27328851]
[1609525540500,0.51440001,29135.0,29125.0,0.075]
[1609525540699,0.51440001,29135.0,29125.0,0.33180302]
[1609525540899,0.10816846,29134.0,29125.0,0.33180302]
[1609525541102,0.005,29134.0,29122.0,0.53009153]
[1609525541401,0.32424737,29125.0,29121.0,0.60509153]
[1609525541605,0.32424737,29125.0,29121.0,0.27328851]
[1609525541811,0.32424737,29125.0,29121.0,0.075]
[1609525542006,0.30924737,29125.0,29123.0,0.5144]
[1609525542207,0.30924737,29125.0,29123.0,0.71268851]
[1609525542401,0.30924737,29125.0,29123.0,0.5144]
[1609525542601,0.30924737,29125.0,29123.0,0.71268851]
[1609525542799,0.30924737,29125.0,29123.0,0.5144]
[1609525543443,0.30924737,29125.0,29123.0,0.5044]
[1609525544447,0.30924737,29125.0,29123.0,0.60853525]
[1609525544845,0.30924737,29125.0,29123.0,0.5044]
[1609525545253,0.30424737,29125.0,29123.0,0.5044]
[1609525545454,0.30424737,29125.0,29124.0,3.67328851]
[1609525545659,0.30424737,29125.0,29124.0,0.575]
[1609525545856,0.30424737,29125.0,29124.0,1.27328851]
[1609525546063,0.30424737,29125.0,29124.0,1.51857851]
[1609525546253,0.30424737,29125.0,29124.0,4.96857851]
[1609525546649,0.25125526,29125.0,29124.0,4.96857851]
[1609525546850,0.25125526,29125.0,29124.0,5.23357851]
[1609525548193,0.24625526,29125.0,29124.0,1.78357851]
[1609525548493,0.24625526,29125.0,29124.0,0.78357851]
[1609525548693,0.24625526,29125.0,29124.0,0.51857851]
[1609525548897,0.24625526,29125.0,29123.0,0.5044]
[1609525549100,0.24625526,29125.0,29120.0,0.6858]
[1609525549300,0.24625526,29125.0,29120.0,0.78782231]
[1609525549694,0.24125526,29125.0,29120.0,0.78782231]
[1609525549893,0.23625526,29125.0,29120.0,1.78782231]
[1609525550096,0.23625526,29125.0,29121.0,1.0]
[1609525550399,0.23625526,29125.0,29120.0,0.6858]
[1609525551497,0.23625526,29125.0,29121.0,1.0]
[1609525551698,0.23625526,29125.0,29120.0,0.7608]
[1609525552093,0.23625526,29125.0,29120.0,1.7608]
[1609525552297,0.23625526,29125.0,29120.0,0.7608]
[1609525552500,0.23385334,29125.0,29120.0,0.7608]
[1609525552718,0.23135134,29125.0,29120.0,0.7608]
[1609525552916,0.23135134,29125.0,29120.0,0.6858]
[1609525553520,0.23135134,29125.0,29122.0,0.48]
[1609525553723,0.22664758,29125.0,29122.0,0.48]
[1609525553925,0.23164758,29125.0,29122.0,0.48]
[1609525554229,0.36661,29124.0,29122.0,0.48]
[1609525554425,1.24350758,29125.0,29122.0,0.475]
[1609525554725,0.6726888,29124.0,29122.0,0.475]
[1609525555223,1.855,29123.0,29122.0,0.475]
[1609525555425,2.7076888,29123.0,29122.0,0.475]
[1609525555623,3.0742988,29123.0,29122.0,0.475]
[1609525556021,3.0742988,29123.0,29122.0,0.46710891]
[1609525557528,4.25,29122.0,29113.0,1.0]
[1609525557725,4.9076888,29122.0,29113.0,1.0]
[1609525557925,4.9076888,29122.0,29117.0,0.1301]
[1609525558126,4.9026888,29122.0,29117.0,0.1301]
[1609525558373,0.76,29121.0,29117.0,0.1301]
[1609525558560,1.4326888,29121.0,29117.0,0.1301]
[1609525559164,1.6094688,29121.0,29117.0,0.1251]
[1609525559365,0.8494688,29121.0,29117.0,0.1251]
[1609525559571,0.2,29120.0,29117.0,0.1251]
[1609525559871,0.8726888,29120.0,29117.0,0.1251]
[1609525560476,0.8726888,29120.0,29115.0,0.5146]
[1609525560477,1.55,29119.0,29115.0,0.5146]
[1609525560673,0.8586776,29120.0,29118.0,0.48]
[1609525560871,0.6726888,29120.0,29118.0,0.48]
[1609525561367,0.6176888,29120.0,29118.0,0.48]
[1609525562733,0.72176195,29120.0,29118.0,0.58392504]
[1609525562940,1.75,29119.0,29115.0,0.10852504]
[1609525563135,0.6176888,29120.0,29119.0,0.125]
[1609525563530,0.6126888,29120.0,29119.0,0.125]
[1609525563831,0.5986776,29120.0,29119.0,0.125]
[1609525564136,3.9652876,29120.0,29119.0,0.22749973]
[1609525564337,4.5552876,29120.0,29119.0,0.22749973]
[1609525564538,4.5552876,29120.0,29119.0,0.125]
[1609525565739,6.15,29119.0,29106.0,0.07370302]
[1609525565940,0.50120312,29118.0,29107.0,1.0]
[1609525566134,1.05488072,29118.0,29107.0,1.0]
[1609525566440,1.93068964,29117.0,29107.0,1.0]
[1609525566640,1.8606336,29117.0,29107.0,1.0]
[1609525566842,0.49336128,29116.0,29107.0,1.0]
[1609525567147,0.245,29115.0,29106.0,1.0]
[1609525567333,0.8386776,29115.0,29106.0,1.0]
[1609525568168,0.8386776,29115.0,29106.0,1.5147]
[1609525568467,0.8386776,29115.0,29106.0,0.5147]
[1609525568966,0.8336776,29115.0,29106.0,0.5147]
[1609525569466,0.8336776,29115.0,29106.0,0.5149]
[1609525570771,0.50230434,29114.0,29106.0,0.5149]
[1609525570975,0.41302,29113.0,29104.0,0.0002]
[1609525571276,0.50230434,29112.0,29106.0,8.442048]
[1609525571510,0.135,29111.0,29106.0,7.452048]
[1609525571673,0.135,29111.0,29109.0,0.0268]
[1609525571972,0.7286776,29111.0,29109.0,0.10234943]
[1609525572873,0.7286776,29111.0,29107.0,0.0002]
[1609525573072,0.7286776,29111.0,29106.0,7.452048]
[1609525573824,0.72844098,29111.0,29106.0,7.452048]
[1609525574430,0.5149,29109.0,29106.0,7.452048]
[1609525574628,0.5936776,29108.0,29106.0,7.452048]
[1609525574831,3.11,29107.0,29106.0,7.452048]
[1609525575026,3.27939,29107.0,29106.0,7.452048]
[1609525575268,1.0730676,29107.0,29106.0,7.54377924]
[1609525575829,1.1763833,29107.0,29106.0,7.54377924]
[1609525576031,1.0069933,29107.0,29106.0,7.54377924]
[1609525576234,0.5936776,29107.0,29106.0,7.54377924]
[1609525576923,0.5936776,29107.0,29106.0,7.442048]
[1609525577978,0.5936776,29107.0,29106.0,7.54368648]
[1609525578188,0.5936776,29107.0,29106.0,7.442048]
[1609525578979,5.3436776,29107.0,29106.0,7.437048]
[1609525579186,1.7602876,29107.0,29106.0,7.437048]
[1609525579380,0.5936776,29107.0,29106.0,7.437048]
[1609525579686,0.5936776,29107.0,29106.0,7.431548]
[1609525580385,0.5936776,29107.0,29106.0,7.53316586]
[1609525580580,0.5936776,29107.0,29106.0,7.431548]
[1609525581424,0.97120796,29107.0,29106.0,7.431548]
[1609525581620,2.18120796,29107.0,29106.0,7.53458824]
[1609525582017,2.18120796,29107.0,29106.0,7.431548]
[1609525582216,1.19120796,29107.0,29106.0,7.431548]
[1609525582420,5.79120796,29107.0,29106.0,7.341548]
[1609525582620,1.19120796,29107.0,29106.0,7.341548]
[1609525582816,4.48120796,29107.0,29106.0,7.341548]
[1609525583016,3.49120796,29107.0,29106.0,7.43911412]
[1609525583418,1.19120796,29107.0,29106.0,7.43911412]
[1609525583616,0.82459796,29107.0,29106.0,7.43911412]
[1609525583819,1.19376732,29107.0,29106.0,7.336548]
[1609525584820,1.19376732,29107.0,29106.0,7.44093848]
[1609525585019,1.19376732,29107.0,29106.0,7.336548]
[1609525585322,1.19376732,29107.0,29106.0,7.246548]
[1609525585924,1.19376732,29107.0,29106.0,7.34846477]
[1609525586644,5.34376732,29107.0,29106.0,7.34346477]
[1609525586847,5.34376732,29107.0,29106.0,7.241548]